[Event "32nd NATO Championship 2022"]
[Site "Tartu"]
[Date "2022.06.28"]
[Round "3.27"]
[White "Stuhr, Finn"]
[Black "Balmaceda, Enrico"]
[Result "0-1"]
[ECO "B30"]
[WhiteElo "1667"]
[BlackElo "1958"]
[Annotator "NA RC"]
[PlyCount "98"]
[EventDate "2022.06.27"]
[EventType "swiss"]
[EventCountry "EST"]
[SourceTitle "playchess.com"]
[Source "ChessBase"]
[SourceQuality "1"]
[TimeControl "5400+30"]

1. e4 {[%emt 0:00:03]} c5 {[%emt 0:00:44]} 2. Bc4 {[%emt 0:00:09]} Nc6 {[%emt 0:00:27]} 3. Nf3 {[%emt 0:00:27]} g6 {[%emt 0:00:50]} 4. c3 {[%emt 0:03:50]} Bg7 {[%emt 0:00:44]} 5. d3 {[%emt 0:00:35]} e6 {[%emt 0:04:24]} 6. Qe2 {[%emt 0:00:12]} Nge7 {[%emt 0:01:29]} 7. Bb3 {[%emt 0:04:17]} Qc7 {[%emt 0:11:17]} 8. O-O {[%emt 0:03:41]} O-O {[%emt 0:01:51]} 9. Be3 {[%emt 0:02:35]} b6 {[%emt 0:06:59]} 10. Nbd2 {[%emt 0:00:49]} Ba6 {[%emt 0:04:00]} 11. a4 {[%emt 0:03:16]} d5 {[%emt 0:03:42]} 12. Bg5 {[%emt 0:08:16]} Rfe8 {[%emt 0:30:58]} 13. Rfe1 {[%emt 0:06:34]} Qd7 {[%emt 0:01:30]} (13... h6 $15 14. Bxe7 (14. exd5 exd5 15. Bxe7 Rxe7 $17) 14... Rxe7) 14. Bc2 {[%emt 0:03:35]} h6 {[%emt 0:03:20]} 15. Bf4 $17 {[%emt 0:04:21]} (15. Bxe7 $15 Rxe7 16. e5) 15... Rad8 {[%emt 0:04:03]} 16. e5 {[%emt 0:03:52]} Rc8 {[%emt 0:03:20]} 17. g4 {[%emt 0:06:46]} g5 {[%emt 0:07:38]} 18. Bg3 {[%emt 0:05:20]} Ng6 {[%emt 0:00:06]} 19. h4 {[%emt 0:05:47]} gxh4 {[%emt 0:00:09]} 20. Bxh4 {[%emt 0:08:39]} Nxh4 {[%emt 0:01:02]} 21. Nxh4 {[%emt 0:00:55]} Nxe5 {[%emt 0:00:10]} 22. f4 {[%emt 0:08:12]} Ng6 {[%emt 0:01:58]} 23. Qh2 {[%emt 0:00:23]} Nxh4 {[%emt 0:02:06]} 24. Qxh4 {[%emt 0:01:19]} Qd8 {[%emt 0:00:00]} 25. g5 {[%emt 0:01:01]} hxg5 {[%emt 0:00:17]} 26. fxg5 {[%emt 0:00:20]} e5 {[%emt 0:01:03]} 27. Kf2 {[%emt 0:01:20]} Rc6 {[%emt 0:00:36]} 28. Nf3 {[%emt 0:03:20]} Bc8 {[%emt 0:02:06]} 29. Qg3 {[%emt 0:02:16]} Qe7 {[%emt 0:02:33]} 30. Re2 {[%emt 0:01:51]} Bf5 {[%emt 0:02:04]} 31. Rae1 {[%emt 0:01:18]} Re6 {[%emt 0:00:21]} 32. Nh4 {[%emt 0:04:48]} Bh7 {[%emt 0:00:48]} 33. Qg2 {[%emt 0:01:21]} e4 {[%emt 0:00:59]} 34. dxe4 {[%emt 0:02:54]} Bxe4 {[%emt 0:00:48]} 35. Bxe4 {[%emt 0:00:03]} Rxe4 {[%emt 0:00:23]} 36. Rxe4 {[%emt 0:00:19]} dxe4 {[%emt 0:00:11]} 37. Nf5 {[%emt 0:00:17]} Qe5 {[%emt 0:00:26]} 38. Qg4 {[%emt 0:01:52]} Qh2+ {[%emt 0:00:41]} 39. Kf1 {[%emt 0:00:30]} Qxb2 {[%emt 0:00:55]} 40. Qg3 {[%emt 0:00:17]} Qxc3 {[%emt 0:00:27]} 41. Nh6+ {[%emt 0:00:34]} Kh7 {[%emt 0:00:49]} 42. Qf4 {[%emt 0:01:25]} Qh3+ {[%emt 0:01:23]} 43. Kf2 {[%emt 0:00:42]} Bd4+ {[%emt 0:00:28]} 44. Re3 {[%emt 0:01:02]} Qxe3+ {[%emt 0:00:10]} 45. Qxe3 {[%emt 0:00:16]} Bxe3+ {[%emt 0:00:03]} 46. Kxe3 {[%emt 0:00:12]} Re7 {[%emt 0:00:47]} 47. Nf5 {[%emt 0:00:29]} Re5 {[%emt 0:00:33]} 48. Nd6 {[%emt 0:01:06]} Kg6 {[%emt 0:01:08]} 49. Kf4 {[%emt 0:00:57]} Re6 {[%emt 0:01:04]} 0-1

[Event "32nd NATO Championship 2022"]
[Site "Tartu"]
[Date "2022.06.28"]
[Round "3.28"]
[White "Randall, Gordon"]
[Black "O`Byrne, Daniel"]
[Result "1-0"]
[ECO "A51"]
[WhiteElo "1954"]
[BlackElo "1664"]
[Annotator "NA RC"]
[PlyCount "59"]
[EventDate "2022.06.27"]
[EventType "swiss"]
[EventCountry "EST"]
[SourceTitle "playchess.com"]
[Source "ChessBase"]
[SourceQuality "1"]
[TimeControl "5400+30"]

1. d4 {[%emt 0:00:08]} Nf6 {[%emt 0:00:10]} 2. c4 {[%emt 0:00:07]} e5 {[%emt 0:00:07]} 3. dxe5 {[%emt 0:00:07]} Ne4 {[%emt 0:01:25]} 4. a3 {[%emt 0:01:50]} Bc5 {[%emt 0:04:05]} 5. e3 {[%emt 0:00:44]} d6 {[%emt 0:01:00]} 6. Qd5 {[%emt 0:05:04]} Ng5 {[%emt 0:02:39]} 7. exd6 {[%emt 0:01:56]} Bxd6 {[%emt 0:00:32]} 8. e4 {[%emt 0:02:04]} Ne6 {[%emt 0:01:31]} 9. Nc3 {[%emt 0:07:04]} c6 {[%emt 0:02:08]} 10. Qd1 {[%emt 0:02:18]} O-O {[%emt 0:02:59]} 11. Nf3 {[%emt 0:02:32]} Qc7 {[%emt 0:01:10]} 12. Be2 {[%emt 0:02:50]} Re8 {[%emt 0:02:19]} 13. O-O {[%emt 0:02:01]} Nc5 {[%emt 0:02:54]} 14. Qc2 {[%emt 0:03:28]} Bg4 {[%emt 0:06:18]} 15. h3 {[%emt 0:05:09]} Bh5 {[%emt 0:00:16]} 16. Be3 {[%emt 0:07:50]} Bg6 {[%emt 0:01:11]} 17. Nd2 {[%emt 0:04:09]} Nbd7 {[%emt 0:05:55]} 18. f4 {[%emt 0:03:18]} f6 {[%emt 0:02:03]} 19. b4 {[%emt 0:02:07]} Na6 {[%emt 0:02:13]} 20. c5 {[%emt 0:01:44]} Bf8 {[%emt 0:00:43]} 21. Bc4+ {[%emt 0:04:44]} Bf7 $2 {[%emt 0:00:50]} (21... Kh8 22. Ne2 h6) 22. Bxf7+ {[%emt 0:00:39]} Kxf7 {[%emt 0:00:04]} 23. Qb3+ {[%emt 0:00:20]} Ke7 {[%emt 0:00:21]} 24. Nf3 {[%emt 0:02:06]} Kd8 {[%emt 0:02:21]} 25. Rad1 {[%emt 0:03:04]} Kc8 {[%emt 0:01:26]} 26. Qf7 $18 {[%emt 0:02:20]} Rd8 {[%emt 0:05:23]} 27. Nd4 {[%emt 0:01:18]} Ndb8 {[%emt 0:03:24]} 28. Ne6 {[%emt 0:01:38]} Rxd1 {[%emt 0:03:16]} 29. Rxd1 {[%emt 0:00:19]} Qd7 {[%emt 0:02:01]} 30. Qxf8+ {[%emt 0:00:19]} 1-0

[Event "32nd NATO Championship 2022"]
[Site "Tartu"]
[Date "2022.06.28"]
[Round "3.34"]
[White "Rizihs, Valerijs"]
[Black "Tammisto, Janek"]
[Result "0-1"]
[ECO "A43"]
[WhiteElo "1619"]
[BlackElo "1881"]
[Annotator "NA RC"]
[PlyCount "98"]
[EventDate "2022.06.27"]
[EventType "swiss"]
[EventCountry "EST"]
[SourceTitle "playchess.com"]
[Source "ChessBase"]
[SourceQuality "1"]
[TimeControl "5400+30"]

1. d4 {[%emt 0:00:24]} Nf6 {[%emt 0:00:07]} 2. Nc3 {[%emt 0:00:07]} g6 {[%emt 0:00:09]} 3. e4 {[%emt 0:00:07]} d6 {[%emt 0:00:04]} 4. Nf3 {[%emt 0:00:07]} Bg7 {[%emt 0:00:20]} 5. Be2 {[%emt 0:00:39]} O-O {[%emt 0:00:33]} 6. O-O {[%emt 0:00:26]} b6 {[%emt 0:01:22]} 7. Re1 {[%emt 0:08:53]} Bb7 {[%emt 0:04:12]} 8. Bf1 {[%emt 0:01:18]} c5 {[%emt 0:01:01]} 9. d5 {[%emt 0:02:43]} Na6 {[%emt 0:09:04]} 10. h3 {[%emt 0:02:22]} Nc7 {[%emt 0:00:28]} 11. Bf4 {[%emt 0:02:26]} a6 {[%emt 0:01:03]} 12. a4 {[%emt 0:00:57]} Qd7 {[%emt 0:10:03]} 13. Qd2 {[%emt 0:06:41]} b5 {[%emt 0:01:41]} 14. axb5 {[%emt 0:09:50]} axb5 {[%emt 0:00:30]} 15. e5 {[%emt 0:02:33]} b4 {[%emt 0:03:52]} 16. Rxa8 {[%emt 0:23:58]} Rxa8 {[%emt 0:00:12]} 17. Nd1 $17 {[%emt 0:18:05]} (17. exf6 $11 bxc3 18. bxc3 Bxf6 19. c4) 17... Nfxd5 {[%emt 0:03:40]} 18. exd6 {[%emt 0:01:50]} exd6 {[%emt 0:02:30]} 19. Bg3 {[%emt 0:02:54]} Ba6 {[%emt 0:03:16]} 20. Bxa6 {[%emt 0:01:54]} Rxa6 {[%emt 0:00:02]} 21. c4 {[%emt 0:01:29]} Ne7 {[%emt 0:14:27]} 22. b3 {[%emt 0:06:30]} Ne6 {[%emt 0:02:08]} 23. Re2 {[%emt 0:02:10]} Nf5 {[%emt 0:01:04]} 24. Be5 {[%emt 0:01:49]} Bxe5 {[%emt 0:02:14]} 25. Nxe5 {[%emt 0:00:02]} Qc7 {[%emt 0:00:01]} 26. Ng4 {[%emt 0:00:50]} Qd8 {[%emt 0:05:32]} 27. Nde3 {[%emt 0:01:28]} h5 {[%emt 0:03:41]} 28. Nxf5 {[%emt 0:00:06]} hxg4 {[%emt 0:00:15]} 29. Nh6+ {[%emt 0:00:09]} Kf8 {[%emt 0:02:36]} 30. Nxg4 {[%emt 0:00:06]} Qg5 {[%emt 0:00:20]} 31. Qb2 {[%emt 0:01:06]} Nd4 {[%emt 0:00:27]} 32. Rd2 {[%emt 0:00:49]} Ra1+ {[%emt 0:01:47]} 33. Qxa1 {[%emt 0:00:27]} Qxd2 {[%emt 0:00:02]} 34. Qa8+ {[%emt 0:00:27]} Kg7 {[%emt 0:00:02]} 35. Qd8 {[%emt 0:00:53]} Ne2+ {[%emt 0:01:12]} 36. Kh2 {[%emt 0:00:13]} Qd4 {[%emt 0:00:22]} 37. g3 {[%emt 0:01:05]} Qa1 {[%emt 0:01:29]} 38. Kg2 {[%emt 0:01:04]} Qg1+ {[%emt 0:01:14]} 39. Kf3 {[%emt 0:00:06]} Nd4+ {[%emt 0:00:03]} 40. Ke4 {[%emt 0:00:50]} Qb1+ {[%emt 0:00:03]} 41. Kd5 {[%emt 0:00:17]} Qf5+ {[%emt 0:00:15]} 42. Kxd6 {[%emt 0:00:18]} Nxb3 {[%emt 0:00:21]} 43. Kc7 {[%emt 0:00:44]} Nd4 {[%emt 0:00:25]} 44. Qd6 {[%emt 0:00:32]} b3 {[%emt 0:01:41]} 45. Ne3 {[%emt 0:00:31]} Qxf2 {[%emt 0:00:34]} 46. Nd5 {[%emt 0:00:16]} Ne6+ {[%emt 0:02:44]} 47. Kc8 {[%emt 0:00:01]} Qd4 {[%emt 0:00:27]} 48. Qb8 {[%emt 0:01:12]} b2 {[%emt 0:00:38]} 49. Nf4 {[%emt 0:00:24]} Qd8+ {[%emt 0:00:20]} 0-1

[Event "32nd NATO Championship 2022"]
[Site "Tartu"]
[Date "2022.06.28"]
[Round "3.42"]
[White "Forsythe, William Bradley"]
[Black "Boudry, Rik"]
[Result "1/2-1/2"]
[ECO "B23"]
[WhiteElo "1608"]
[BlackElo "1464"]
[Annotator "NA RC"]
[PlyCount "133"]
[EventDate "2022.06.27"]
[EventType "swiss"]
[EventCountry "EST"]
[SourceTitle "playchess.com"]
[Source "ChessBase"]
[SourceQuality "1"]
[TimeControl "5400+30"]

1. e4 {[%emt 0:00:04]} c5 {[%emt 0:00:18]} 2. Nc3 {[%emt 0:00:04]} e6 {[%emt 0:00:52]} 3. f4 {[%emt 0:00:19]} Nc6 {[%emt 0:00:29]} 4. Nf3 {[%emt 0:00:20]} b6 {[%emt 0:02:42]} 5. Bb5 {[%emt 0:09:34]} Bb7 {[%emt 0:00:32]} 6. Bxc6 {[%emt 0:02:06]} Bxc6 {[%emt 0:00:19]} 7. O-O {[%emt 0:02:09]} Nf6 {[%emt 0:00:53]} 8. d3 {[%emt 0:00:25]} g6 {[%emt 0:01:06]} 9. Ne5 {[%emt 0:08:09]} Bb7 {[%emt 0:01:38]} 10. f5 {[%emt 0:03:46]} d6 {[%emt 0:03:45]} 11. Ng4 {[%emt 0:13:31]} gxf5 {[%emt 0:10:16]} 12. Bg5 {[%emt 0:23:59]} Be7 {[%emt 0:00:56]} 13. Nxf6+ {[%emt 0:02:25]} Bxf6 {[%emt 0:00:47]} 14. Bxf6 {[%emt 0:00:28]} Qxf6 {[%emt 0:00:13]} 15. exf5 {[%emt 0:01:59]} Qd4+ {[%emt 0:02:31]} 16. Rf2 {[%emt 0:01:27]} Rg8 {[%emt 0:02:45]} 17. Kf1 {[%emt 0:00:41]} e5 {[%emt 0:05:38]} 18. Nb5 {[%emt 0:01:03]} Qh4 {[%emt 0:03:30]} 19. Nxd6+ {[%emt 0:03:38]} Kd7 {[%emt 0:01:52]} 20. Nxb7 {[%emt 0:00:10]} Qxh2 {[%emt 0:02:20]} 21. Qe1 {[%emt 0:06:18]} Rg4 {[%emt 0:03:23]} 22. Ke2 {[%emt 0:05:55]} Rxg2 {[%emt 0:01:07]} 23. Nxc5+ {[%emt 0:00:12]} bxc5 {[%emt 0:00:20]} 24. Rxg2 {[%emt 0:00:08]} Qxg2+ {[%emt 0:00:28]} 25. Qf2 {[%emt 0:00:09]} Rg8 {[%emt 0:01:28]} 26. Rf1 {[%emt 0:01:24]} h5 {[%emt 0:00:36]} 27. Ke1 {[%emt 0:01:42]} Qxf2+ {[%emt 0:01:08]} 28. Rxf2 {[%emt 0:00:46]} Rg5 {[%emt 0:00:14]} 29. Ke2 {[%emt 0:00:14]} h4 {[%emt 0:00:10]} 30. Ke3 {[%emt 0:00:56]} h3 {[%emt 0:00:17]} 31. Rh2 {[%emt 0:00:53]} Rh5 {[%emt 0:00:25]} 32. a3 {[%emt 0:00:52]} Kc6 {[%emt 0:01:07]} 33. b4 {[%emt 0:00:44]} Kb5 {[%emt 0:01:11]} 34. c4+ {[%emt 0:03:22]} Kb6 {[%emt 0:01:08]} 35. Ke4 {[%emt 0:02:10]} f6 {[%emt 0:00:13]} 36. Kd5 {[%emt 0:00:55]} cxb4 {[%emt 0:00:28]} 37. axb4 {[%emt 0:00:03]} Rxf5 {[%emt 0:00:43]} 38. Rxh3 {[%emt 0:01:03]} Rf1 {[%emt 0:01:04]} 39. Rh6 {[%emt 0:02:21]} Rf3 {[%emt 0:00:15]} 40. Ke6 {[%emt 0:00:13]} Rxd3 {[%emt 0:00:11]} 41. Rxf6 {[%emt 0:00:14]} Re3 {[%emt 0:01:12]} 42. Kd5+ {[%emt 0:04:39]} Kb7 {[%emt 0:00:37]} 43. Re6 {[%emt 0:00:00]} Rb3 {[%emt 0:00:48]} 44. Kc5 {[%emt 0:00:00]} Re3 {[%emt 0:00:13]} 45. Re7+ {[%emt 0:00:00]} Kb8 {[%emt 0:00:19]} 46. Kc6 {[%emt 0:00:00]} a6 {[%emt 0:00:45]} 47. Kb6 {[%emt 0:00:20]} Kc8 {[%emt 0:00:14]} 48. Kxa6 {[%emt 0:01:10]} Kd8 {[%emt 0:00:03]} 49. Rh7 {[%emt 0:00:13]} e4 {[%emt 0:00:22]} 50. Kb5 {[%emt 0:00:33]} Rf3 {[%emt 0:00:11]} 51. Kc5 {[%emt 0:00:44]} e3 {[%emt 0:00:17]} 52. Rh5 {[%emt 0:00:04]} e2 {[%emt 0:00:19]} 53. Re5 {[%emt 0:00:41]} Rf5 {[%emt 0:00:57]} 54. Rxf5 {[%emt 0:00:05]} e1=Q {[%emt 0:00:03]} 55. Rd5+ {[%emt 0:00:22]} Kc7 {[%emt 0:00:29]} 56. b5 {[%emt 0:00:13]} Qc3 {[%emt 0:04:21]} 57. b6+ {[%emt 0:01:14]} Kc8 {[%emt 0:06:08]} 58. Kb5 {[%emt 0:00:37]} Qb3+ {[%emt 0:00:39]} 59. Kc5 {[%emt 0:00:14]} Qa3+ {[%emt 0:00:18]} 60. Kb5 {[%emt 0:00:39]} Qb3+ {[%emt 0:00:33]} 61. Kc5 {[%emt 0:00:04]} Qa4 {[%emt 0:00:16]} 62. Rd4 {[%emt 0:01:47]} Qe8 {[%emt 0:02:06]} 63. Kb4 {[%emt 0:00:43]} Qc6 {[%emt 0:01:10]} 64. c5 {[%emt 0:00:10]} Kb7 {[%emt 0:00:36]} 65. Rd6 {[%emt 0:00:34]} Qe4+ {[%emt 0:00:38]} 66. Kb5 {[%emt 0:00:39]} Qb1+ {[%emt 0:01:06]} 67. Ka5 {[%emt 0:00:17]} 1/2-1/2

[Event "32nd NATO Championship 2022"]
[Site "Tartu"]
[Date "2022.06.28"]
[Round "3.44"]
[White "Muld, Tarmo"]
[Black "Jansen, Lyle John"]
[Result "1-0"]
[ECO "A21"]
[WhiteElo "1783"]
[BlackElo "1470"]
[Annotator "NA RC"]
[PlyCount "79"]
[EventDate "2022.06.27"]
[EventType "swiss"]
[EventCountry "EST"]
[SourceTitle "playchess.com"]
[Source "ChessBase"]
[SourceQuality "1"]
[TimeControl "5400+30"]

1. c4 {[%emt 0:00:10]} e5 {[%emt 0:01:01]} 2. Nc3 {[%emt 0:00:25]} c6 {[%emt 0:01:42]} 3. Nf3 {[%emt 0:00:38]} d6 {[%emt 0:00:48]} 4. d3 {[%emt 0:00:35]} Be7 {[%emt 1:28:59]} 5. g3 {[%emt 1:31:12]} Nd7 {[%emt 0:00:00]} 6. Bg2 {[%emt 0:00:00]} h6 {[%emt 0:00:00]} 7. O-O {[%emt 0:00:00]} Ngf6 {[%emt 0:00:00]} 8. d4 {[%emt 0:00:00]} Qc7 {[%emt 0:00:00]} 9. e4 {[%emt 0:00:00]} a6 {[%emt 0:00:00]} 10. Re1 {[%emt 0:00:00]} b5 {[%emt 0:00:00]} 11. cxb5 {[%emt 0:00:00]} axb5 {[%emt 0:00:00]} 12. Be3 {[%emt 0:00:00]} b4 {[%emt 0:00:00]} 13. Na4 {[%emt 0:00:00]} Bb7 {[%emt 0:00:00]} 14. dxe5 {[%emt 0:00:00]} Nxe4 {[%emt 0:00:00]} 15. Nd4 {[%emt 0:00:00]} dxe5 {[%emt 0:00:00]} 16. Nf5 {[%emt 0:00:00]} Nec5 {[%emt 0:00:00]} 17. Nxc5 {[%emt 0:00:00]} Bxc5 {[%emt 0:00:00]} 18. Nxg7+ {[%emt 0:00:00]} Kf8 {[%emt 0:00:00]} 19. Nf5 {[%emt 0:00:00]} Bxe3 {[%emt 0:00:00]} 20. Rxe3 {[%emt 0:00:00]} c5 {[%emt 0:00:00]} 21. Bxb7 {[%emt 0:00:00]} Qxb7 {[%emt 0:00:00]} 22. Qd6+ {[%emt 0:00:00]} Kg8 {[%emt 0:00:00]} 23. Rd1 {[%emt 0:00:00]} Ra6 {[%emt 0:00:00]} 24. Qxd7 {[%emt 0:00:00]} Qxd7 {[%emt 0:00:00]} 25. Rxd7 {[%emt 0:00:00]} f6 {[%emt 0:00:00]} 26. a3 {[%emt 0:00:00]} Rh7 {[%emt 0:00:00]} 27. Rd8+ {[%emt 0:00:00]} Kf7 {[%emt 0:00:00]} 28. axb4 {[%emt 0:00:00]} cxb4 {[%emt 0:00:00]} 29. Rb8 {[%emt 0:00:00]} Kg6 {[%emt 0:00:00]} 30. Nh4+ {[%emt 0:00:00]} Kh5 {[%emt 0:00:00]} 31. Rxb4 {[%emt 0:00:00]} Rg7 {[%emt 0:00:00]} 32. Kg2 {[%emt 0:00:00]} Rg4 {[%emt 0:00:00]} 33. Rb8 {[%emt 0:00:00]} Ra7 {[%emt 0:00:00]} 34. h3 {[%emt 0:00:00]} Rc4 {[%emt 0:00:00]} 35. b3 {[%emt 0:00:00]} Rc1 {[%emt 0:00:00]} 36. Rg8 {[%emt 0:00:00]} Raa1 {[%emt 0:00:00]} 37. Nf5 {[%emt 0:00:00]} Rg1+ {[%emt 0:00:00]} 38. Kf3 {[%emt 0:00:00]} e4+ {[%emt 0:00:00]} 39. Rxe4 {[%emt 0:00:00]} Rxg3+ {[%emt 0:17:30]} 40. Nxg3# {[%emt 0:17:30]} 1-0

[Event "32nd NATO Championship 2022"]
[Site "Tartu"]
[Date "2022.06.29"]
[Round "4.1"]
[White "Stein, Robert"]
[Black "Wang, Eigen"]
[Result "1/2-1/2"]
[ECO "B38"]
[WhiteElo "2365"]
[BlackElo "2269"]
[Annotator "TA"]
[PlyCount "99"]
[EventDate "2022.06.27"]
[EventType "swiss"]
[EventCountry "EST"]
[SourceTitle "playchess.com"]
[Source "ChessBase"]
[SourceQuality "1"]
[TimeControl "5400+30"]

{[%evp 21,99,45,76,43,72,70,64,28,30,-6,-11,0,0,-21,-32,-29,-30,-36,-16,-24,0,0,0,-7,14,-6,-8,-16,-5,-69,-53,-166,-160,-152,-157,-151,-59,-42,-39,-47,-49,-50,-37,-52,0,0,0,-14,0,0,0,0,0,0,0,0,0,0,0,0,0,0,10,20,20,5,5,5,5,5,5,5,5,0,0,0,0,0,0,0]} 1. d4 {[%emt 0:00:05]} Nf6 {[%emt 0:00:27]} 2. c4 {[%emt 0:00:23]} g6 {[%emt 0:00:31]} 3. Nc3 {[%emt 0:02:36]} Bg7 {[%emt 0:00:11]} 4. e4 {[%emt 0:00:42]} d6 {[%emt 0:00:33]} 5. Nf3 {[%emt 0:00:33]} O-O {[%emt 0:00:10]} 6. Be2 {[%emt 0:00:06]} c5 {[%emt 0:02:50]} 7. O-O {[%emt 0:06:37]} cxd4 {[%emt 0:02:43]} 8. Nxd4 {[%emt 0:00:12]} Nc6 {[%emt 0:00:08]} 9. Be3 {[%emt 0:00:20]} Nxd4 {[%emt 0:01:21]} 10. Bxd4 {[%emt 0:00:09]} Bd7 $1 {[%emt 0:00:38] 10...Bd7 is better than 10...Be6.} 11. f3 {[%emt 0:17:23]} Bc6 {[%emt 0:05:32]} 12. Kh1 {[%emt 0:01:33] B38: Sicilian: Maroczy Bind with 5...Bg7 and 7...0-0.} Nd7 {[%emt 0:06:11]} 13. Bxg7 {[%emt 0:00:28] White is more active.} Kxg7 {[%emt 0:00:06]} 14. Qd4+ {[%emt 0:00:38] White is slightly better.} (14. b4 $5 {[%cal Rb4b5]}) 14... Kg8 {[%emt 0:00:06]} 15. Nd5 {[%emt 0:04:11] [#]} e5 $146 {[%emt 0:06:35]} ({Predecessor:} 15... a5 16. Rad1 Nc5 17. f4 Nxe4 18. Qxe4 e6 19. f5 exd5 20. cxd5 Re8 21. Qf3 Bd7 {1-0 (36) Peczely,S (1967)-Graf,C (1710) Oberhof 2011}) 16. Qd2 {[%emt 0:01:26]} Bxd5 {[%emt 0:00:28]} 17. exd5 {[%emt 0:01:38]} a5 {[%emt 0:02:49]} 18. b3 {[%emt 0:01:17]} Qb6 {[%emt 0:04:03]} 19. Rab1 {[%emt 0:05:09]} Nf6 {[%emt 0:07:32]} 20. a3 {[%emt 0:04:32]} Nh5 {[%emt 0:02:53]} 21. Rfc1 {[%emt 0:07:29]} Qf2 {[%emt 0:05:30] And now ...Nf4 would win.} 22. Rb2 {[%emt 0:03:21]} Rfe8 {[%emt 0:08:50]} 23. b4 {[%emt 0:08:48]} axb4 {[%emt 0:02:52]} 24. axb4 {[%emt 0:00:13]} ({Don't blunder} 24. Rf1 $2 Qh4 25. Qe1 Qxe1 26. Rxe1 bxa3 $19) 24... b6 {[%emt 0:05:06][%cal Bb7b6,Bb6c5][%mdl 32] Against c5} 25. c5 {[%emt 0:14:58]} (25. g3 $11) 25... bxc5 $15 {[%emt 0:03:23]} (25... Nf4 $2 26. Bb5 Qxd2 27. Rxd2 $16) 26. Bb5 {[%emt 0:04:21]} (26. bxc5 $15 Rab8 27. Rbc2 (27. Rxb8 Rxb8 28. Qe1 Qxe1+ 29. Rxe1 dxc5 $17)) 26... Qxd2 $19 {[%emt 0:01:17]} 27. Rxd2 {[%emt 0:00:04] [#]} Rec8 {[%emt 0:00:56]} ({Resist} 27... cxb4 28. Bxe8 Rxe8 29. Rc4 $14) 28. Rdc2 {[%emt 0:01:56][%cal Rb4c5] [#]} Rab8 {[%emt 0:10:25]} (28... Nf4 $1 $17 29. bxc5 Nxd5) 29. Ba6 $15 {[%emt 0:00:14]} Rd8 {[%emt 0:03:01]} 30. bxc5 {[%emt 0:00:20]} dxc5 {[%emt 0:00:06]} 31. Rxc5 {[%emt 0:00:06]} Nf6 {[%emt 0:02:14]} 32. Bc4 {[%emt 0:01:03]} Rbc8 {[%emt 0:02:28]} (32... e4 $15) 33. Rc6 $11 {[%emt 0:06:26] The position is equal.} Kg7 {[%emt 0:00:41]} 34. Kg1 {[%emt 0:00:47]} Ng8 {[%emt 0:01:47]} 35. Ba6 {[%emt 0:01:49]} Rb8 {[%emt 0:00:29]} 36. d6 {[%emt 0:01:12] Prevents Ne7.} Rb2 {[%emt 0:01:01]} 37. Rd1 {[%emt 0:00:11] Against Rd2. Threatens to win with Rc8.} Nf6 {[%emt 0:05:21]} 38. Bc4 {[%emt 0:02:53]} Rb7 {[%emt 0:03:21]} 39. Ba6 {[%emt 0:00:57]} Rb4 {[%emt 0:01:35]} 40. Rc8 {[%emt 0:01:32]} Rd7 {[%emt 0:00:51]} (40... Rxc8 $2 41. Bxc8 Rb8 42. d7 Nxd7 43. Bxd7 $18) 41. Rc7 {[%emt 0:01:03] aiming for Rxd7.} Rd4 {[%emt 0:01:29]} (41... Rb6 $2 42. Rxd7 Nxd7 43. Bc8 $18) 42. Rxd4 {[%emt 0:00:24]} exd4 {[%emt 0:00:04]} 43. Rxd7 {[%emt 0:00:12]} Nxd7 {[%emt 0:00:03][%mdl 4096] Endgame KB-KN} 44. Bb5 {[%emt 0:00:12]} Nc5 {[%emt 0:00:21]} 45. d7 {[%emt 0:00:45]} Nb7 {[%emt 0:00:29]} 46. Kf2 {[%emt 0:00:39]} Kf8 {[%emt 0:00:12]} 47. Ba6 {[%emt 0:01:28]} Nd8 {[%emt 0:00:06]} 48. Ke2 {[%emt 0:00:08]} Ke7 {[%emt 0:00:06]} 49. Bb5 {[%emt 0:00:18]} Ne6 {[%emt 0:00:46]} 50. g3 {[%emt 0:00:11] Weighted Error Value: White=0.13 (very precise) /Black=0.09 (flawless)} 1/2-1/2